fUSD/lending_fUSD_20251102
["ID","MTS","AMOUNT","RATE_DAILY","PERIOD"]
[392903172,1762119180642,500.0,0.00030136,120]
[392903173,1762119181430,500.0,0.00030136,120]
[392903174,1762119181500,500.0,0.00030136,120]
[392903175,1762119183310,500.0,0.00030136,120]
[392903176,1762119183740,500.0,0.00030136,120]
[392903177,1762119185086,500.0,0.00030136,120]
[392903178,1762119186112,500.0,0.00030136,120]
[392903179,1762119187457,500.0,0.00030136,120]
[392903180,1762119187544,500.0,0.00030136,120]
[392903181,1762119187860,500.0,0.00030136,120]
[392903182,1762119188138,500.0,0.00030136,120]
[392903183,1762119188561,500.0,0.00030136,120]
[392903184,1762119188639,500.0,0.00030136,120]
[392903185,1762119189581,500.0,0.00030136,120]
[392903186,1762119190208,500.0,0.00030136,120]
[392903187,1762119190902,284.86061321,0.00030136,120]
[392903188,1762119191188,535.74688775,0.00030136,120]
[392903189,1762119191917,500.0,0.00030136,120]
[392903190,1762119192172,1000.0,0.00030136,120]
[392903191,1762119192704,500.0,0.00030136,120]
[392903192,1762119192900,500.0,0.00030136,120]
[392903193,1762119193485,500.0,0.00030136,120]
[392903194,1762119193734,385.1379787,0.00030136,120]
[392903195,1762119194783,500.0,0.00030136,120]
[392903196,1762119195588,636.57255851,0.00030136,120]
[392903197,1762119197458,500.0,0.00030136,120]
[392903198,1762119197743,554.55,0.00030136,120]
[392903199,1762119198274,500.0,0.00030136,120]
[392903200,1762119198726,500.0,0.00030136,120]
[392903201,1762119199164,500.0,0.00030136,120]
[392903202,1762119200477,500.0,0.00030136,120]
[392903203,1762119201660,500.0,0.00030137,120]
[392903204,1762119201930,500.0,0.00030136,120]
[392903205,1762119202500,500.0,0.00030136,120]
[392903206,1762119203173,645.33,0.00030136,120]
[392903207,1762119203556,381.77378135,0.00030136,120]
[392903208,1762119203631,500.0,0.00030136,120]
[392903209,1762119203719,500.0,0.00030136,120]
[392903210,1762119205230,500.0,0.00030136,120]
[392903211,1762119205473,500.0,0.00030136,120]
[392903212,1762119205628,500.0,0.00030136,120]
[392903213,1762119207188,500.0,0.00030136,120]
[392903214,1762119207453,500.0,0.00030136,120]
[392903215,1762119208287,661.53,0.00030136,120]
[392903216,1762119209738,674.52,0.00030136,120]
[392903217,1762119210852,500.0,0.00030136,120]
[392903218,1762119211009,500.0,0.00030136,120]
[392903219,1762119212350,500.0,0.00030136,120]
[392903220,1762119213771,500.0,0.00030136,120]
[392903221,1762119214147,500.0,0.00030136,120]
[392903222,1762119214624,500.0,0.00030136,120]
[392903223,1762119215540,550.87908972,0.00030136,120]
[392903224,1762119216222,500.0,0.00030136,120]
[392903225,1762119216298,500.0,0.00030136,120]
[392903226,1762119216376,613.12,0.00030136,120]
[392903227,1762119217592,500.0,0.00030136,120]
[392903228,1762119218831,500.0,0.00030136,120]
[392903229,1762119219594,177.1840172,0.00030136,120]
[392903230,1762119220129,513.51,0.00030136,120]
[392903231,1762119221150,460.77080497,0.00030136,120]
[392903232,1762119222285,500.0,0.00030136,120]
[392903233,1762119223305,500.0,0.00030136,120]
[392903234,1762119224752,500.0,0.00030136,120]
[392903235,1762119224850,479.55702229,0.00030136,120]
[392903236,1762119226147,500.0,0.00030136,120]
[392903237,1762119227959,208.63325417,0.00030136,120]
[392903238,1762119228920,500.0,0.00030136,120]
[392903239,1762119229070,500.0,0.00030136,120]
[392903240,1762119229431,886.87,0.00030136,120]
[392903241,1762119230022,500.0,0.00030136,120]
[392903242,1762119230321,500.0,0.00030136,120]
[392903243,1762119230404,500.0,0.00030136,120]
[392903244,1762119231449,500.0,0.00030136,120]
[392903245,1762119232144,500.0,0.00030136,120]
[392903246,1762119233013,265.5756386,0.00030136,120]
[392903247,1762119234000,500.0,0.00030136,120]
[392903248,1762119234286,890.62,0.00030136,120]
[392903249,1762119234893,500.0,0.00030136,120]
[392903250,1762119234960,891.73,0.00030136,120]
[392903251,1762119237098,500.0,0.00030136,120]
[392903252,1762119237272,500.0,0.00030136,120]
[392903253,1762119237356,500.0,0.00030136,120]
[392903254,1762119239019,500.0,0.00030136,120]
[392903255,1762119239207,500.0,0.00030136,120]
[392903256,1762119239935,500.0,0.00030136,120]
[392903257,1762119241268,500.0,0.00030136,120]
[392903258,1762119241486,587.7,0.00030136,120]
[392903259,1762119242313,586.55215694,0.00030136,120]
[392903260,1762119243188,500.0,0.00030136,120]
[392903261,1762119243375,500.0,0.00030136,120]
[392903262,1762119243512,500.0,0.00030136,120]
[392903263,1762119244287,641.84,0.00030136,120]
[392903264,1762119244525,626.03,0.00030136,120]
[392903265,1762119245104,500.0,0.00030136,120]
[392903266,1762119245307,500.0,0.00030136,120]
[392903267,1762119247080,500.0,0.00030136,120]
[392903268,1762119247146,500.0,0.00030136,120]
[392903269,1762119247996,500.0,0.00030136,120]
[392903270,1762119248725,500.0,0.00030136,120]
[392903271,1762119250534,942.53,0.00030136,120]
[392903272,1762119250765,500.0,0.00030136,120]
[392903273,1762119250957,500.0,0.00030136,120]
[392903274,1762119251581,500.0,0.00030136,120]
[392903275,1762119252128,500.0,0.00030136,120]
[392903276,1762119252343,500.0,0.00030136,120]
[392903277,1762119252514,691.83,0.00030136,120]
[392903278,1762119252861,500.0,0.00030136,120]
[392903279,1762119254945,500.0,0.00030136,120]
[392903280,1762119255110,500.0,0.00030136,120]
[392903281,1762119255178,180.47165106,0.00030136,120]
[392903282,1762119255251,500.0,0.00030136,120]
[392903283,1762119256819,500.0,0.00030136,120]
[392903284,1762119257010,500.0,0.00030136,120]
[392903285,1762119257846,500.0,0.00030136,120]
[392903286,1762119257913,447.44800413,0.00030136,120]
[392903287,1762119259350,500.0,0.00030136,120]
[392903288,1762119261775,670.36,0.00030136,120]
[392903289,1762119262104,500.0,0.00030136,120]
[392903290,1762119262422,575.22249715,0.00030136,120]
[392903291,1762119262783,532.26742737,0.00030136,120]
[392903292,1762119262955,500.0,0.00030136,120]
[392903293,1762119264137,533.29288862,0.00030136,120]
[392903294,1762119265302,500.0,0.00030136,120]
[392903295,1762119266119,500.0,0.00030136,120]
[392903296,1762119266759,500.0,0.00030136,120]
[392903297,1762119266825,500.0,0.00030136,120]
[392903298,1762119268213,500.0,0.00030136,120]
[392903299,1762119268356,500.0,0.00030136,120]
[392903300,1762119271155,657.73,0.00030136,120]
[392903301,1762119271366,579.8933311,0.00030136,120]
[392903302,1762119271564,500.0,0.00030136,120]
[392903303,1762119271718,500.0,0.00030136,120]
[392903304,1762119272085,500.0,0.00030136,120]
[392903305,1762119272477,1000.0,0.00030136,120]
[392903306,1762119273113,500.0,0.00030136,120]
[392903307,1762119273190,425.20909348,0.00030136,120]
[392903308,1762119276004,647.27,0.00030136,120]
[392903309,1762119276178,500.0,0.00030136,120]
[392903310,1762119276236,424.16808433,0.00014094,2]
[392903311,1762119276259,575.83191567,0.00014094,2]
[392903312,1762119276852,500.0,0.00030136,120]
[392903313,1762119278443,689.62,0.00030136,120]
[392903315,1762119279321,500.0,0.00030136,120]
[392903316,1762119280254,500.0,0.00030136,120]
[392903317,1762119281956,500.0,0.00030136,120]
[392903318,1762119282178,3792.94,0.00014094,2]
[392903319,1762119282440,651.09,0.00030136,120]
[392903320,1762119283685,500.0,0.00030136,120]
[392903321,1762119286440,500.0,0.00030136,120]
[392903322,1762119287116,500.0,0.00030136,120]
[392903323,1762119287795,500.0,0.00030136,120]
[392903324,1762119288091,500.0,0.00030136,120]
[392903325,1762119289009,500.0,0.00030136,120]
[392903326,1762119289370,500.0,0.00030136,120]
[392903327,1762119291836,500.0,0.00030136,120]
[392903328,1762119292334,167.3363456,0.00030136,120]
[392903329,1762119292870,500.0,0.00030136,120]
[392903330,1762119293140,500.0,0.00030136,120]
[392903331,1762119293413,527.83843895,0.00030136,120]
[392903332,1762119294050,619.87,0.00030136,120]
[392903333,1762119295318,557.71846267,0.00030136,120]
[392903334,1762119295953,378.2687154,0.00030136,120]
[392903335,1762119297340,500.0,0.00030136,120]
[392903336,1762119297459,500.0,0.00030136,120]
[392903337,1762119297840,500.0,0.00030136,120]
[392903338,1762119297926,238.45849595,0.00030136,120]
[392903339,1762119299117,500.0,0.00030136,120]
[392903341,1762119301486,500.0,0.00030136,120]
[392903342,1762119301889,500.0,0.00030136,120]
[392903343,1762119303674,206.454253,0.00030136,120]
[392903344,1762119304779,500.0,0.00030136,120]
[392903345,1762119304890,847.47,0.00030136,120]
[392903346,1762119305673,500.0,0.00030136,120]
[392903347,1762119305890,546.87,0.00030136,120]
[392903348,1762119305986,500.0,0.00030136,120]
[392903349,1762119306731,1993.23153839,0.000301,120]
[392903350,1762119307009,252.73564936,0.00030136,120]
[392903351,1762119307547,500.0,0.00030136,120]
[392903352,1762119307703,532.27583806,0.00030136,120]
[392903353,1762119308189,500.0,0.00030136,120]
[392903354,1762119310085,500.0,0.00030136,120]
[392903355,1762119310824,579.8,0.00030136,120]
[392903356,1762119310901,530.97192879,0.00030136,120]
[392903359,1762119311107,500.0,0.00030136,120]
[392903360,1762119311353,388.24040198,0.00030136,120]
[392903361,1762119313204,500.0,0.00030136,120]
[392903362,1762119313909,576.79,0.00030136,120]
[392903363,1762119314348,500.0,0.00030136,120]
[392903366,1762119318313,529.19204066,0.00030136,120]
[392903370,1762119320126,500.0,0.00030136,120]
[392903372,1762119320224,500.0,0.00030136,120]
[392903373,1762119320301,500.0,0.00030136,120]
[392903376,1762119321498,500.0,0.00030136,120]
[392903377,1762119321957,221.09910439,0.00030136,120]
[392903381,1762119324044,634.18,0.00030136,120]
[392903382,1762119324114,542.42112599,0.00030136,120]
[392903383,1762119324245,500.0,0.00030136,120]
[392903385,1762119324532,500.0,0.00030136,120]
[392903387,1762119325085,500.0,0.00030136,120]
[392903390,1762119328873,500.0,0.00030136,120]
[392903391,1762119329196,536.79,0.00030136,120]
[392903392,1762119330207,500.0,0.00030136,120]
[392903393,1762119330551,500.0,0.00030136,120]
[392903394,1762119330619,500.0,0.00030136,120]
[392903395,1762119331606,533.54771434,0.00030136,120]
[392903396,1762119334933,500.0,0.00030136,120]
[392903397,1762119335434,500.0,0.00030136,120]
[392903398,1762119335506,500.0,0.00030136,120]
[392903399,1762119335854,532.76192054,0.00030136,120]
[392903400,1762119337055,500.0,0.00030136,120]
[392903401,1762119338559,500.0,0.00030136,120]
[392903402,1762119338848,500.0,0.00030136,120]
[392903403,1762119339100,500.0,0.00030136,120]
[392903404,1762119340914,500.0,0.00030136,120]
[392903405,1762119341066,537.15495873,0.00030136,120]
[392903406,1762119341735,500.0,0.00030136,120]
[392903407,1762119342838,595.0431365,0.00030136,120]
[392903408,1762119343668,500.0,0.00030136,120]
[392903409,1762119344944,500.0,0.00030136,120]
[392903410,1762119345734,500.0,0.00030136,120]
[392903411,1762119346292,500.0,0.00030136,120]
[392903412,1762119346830,500.0,0.00030136,120]
[392903413,1762119347445,153.2,7.02e-05,2]
[392903414,1762119347682,153.2,7.41e-05,2]
[392903415,1762119347845,153.2,7.8e-05,2]
[392903416,1762119348117,500.0,0.00030136,120]
[392903417,1762119348191,500.0,0.00030136,120]
[392903418,1762119348253,153.2,8.19e-05,2]
[392903419,1762119348460,525.61618056,0.00030136,120]
[392903420,1762119348498,153.2,8.58e-05,2]
[392903421,1762119348763,153.2,8.97e-05,2]
[392903422,1762119348919,580.83644928,0.00030136,120]
[392903423,1762119349187,153.2,9.36e-05,2]
[392903424,1762119349410,153.2,9.75e-05,2]
[392903425,1762119349615,153.2,0.0001014,2]
[392903426,1762119349811,153.2,0.0001053,2]
[392903427,1762119350046,153.2,0.0001092,2]
[392903428,1762119350251,153.2,0.0001131,2]
[392903429,1762119350327,500.0,0.00030136,120]
[392903430,1762119350677,500.0,0.00030136,120]
[392903431,1762119350717,153.2,0.000117,2]
[392903432,1762119350902,153.2,0.0001209,2]
[392903433,1762119351100,153.2,0.0001248,2]
[392903434,1762119351334,153.2,0.0001287,2]
[392903435,1762119351533,153.2,0.0001326,2]
[392903436,1762119351740,153.2,0.0001365,2]
[392903437,1762119351942,153.2,0.0001404,2]
[392903438,1762119352162,500.0,0.00030136,120]
[392903440,1762119353283,500.0,0.00030136,120]
[392903441,1762119353633,500.0,0.00030136,120]
[392903442,1762119356472,500.0,0.00030136,120]
[392903443,1762119357140,500.0,0.00030136,120]
[392903444,1762119357217,551.61028905,0.00030136,120]
[392903445,1762119358164,500.0,0.00030136,120]
[392903446,1762119358360,500.0,0.00030136,120]
[392903447,1762119358669,500.0,0.00030136,120]
[392903448,1762119358743,500.0,0.00030136,120]
[392903449,1762119358812,500.0,0.00030136,120]
[392903450,1762119359952,471.91195518,0.00030136,120]
[392903451,1762119360533,500.0,0.00030136,120]
[392903452,1762119362680,500.0,0.00030136,120]
[392903453,1762119365557,500.0,0.00030136,120]
[392903454,1762119365632,500.0,0.00030136,120]
[392903455,1762119366873,500.0,0.00030136,120]
[392903456,1762119367484,500.0,0.00030136,120]
[392903457,1762119367704,500.0,0.00030136,120]
[392903458,1762119369315,500.0,0.00030136,120]
[392903459,1762119369666,500.0,0.00030136,120]
[392903460,1762119372098,552.9363824,0.00030136,120]
[392903461,1762119372390,500.0,0.00030136,120]
[392903462,1762119372468,500.0,0.00030136,120]
[392903463,1762119373492,500.0,0.00030136,120]
[392903464,1762119375333,500.0,0.00030136,120]
[392903465,1762119376706,581.75,0.00030136,120]
[392903466,1762119377045,661.03,0.00030136,120]
[392903467,1762119377492,500.0,0.00030136,120]
[392903468,1762119377974,500.0,0.00030136,120]
[392903469,1762119380640,500.0,0.00030136,120]
[392903470,1762119381947,500.0,0.00030136,120]
[392903471,1762119382012,500.0,0.00030136,120]
[392903472,1762119382187,500.0,0.00030136,120]
[392903473,1762119382448,500.0,0.00030136,120]
[392903474,1762119382744,508.23,0.00030136,120]
[392903475,1762119384470,531.87605664,0.00030136,120]
[392903476,1762119385870,500.0,0.00030136,120]
[392903477,1762119386439,551.3844303,0.00030136,120]
[392903478,1762119386529,500.0,0.00030136,120]
[392903479,1762119388368,656.21,0.00030136,120]
[392903480,1762119388883,500.0,0.00030136,120]
[392903481,1762119389152,500.0,0.00030136,120]
[392903482,1762119389810,529.33083807,0.00030136,120]
[392903483,1762119391831,500.0,0.00030136,120]
[392903484,1762119392278,500.0,0.00030136,120]
[392903485,1762119393543,500.0,0.00030136,120]
[392903486,1762119394372,500.0,0.00030136,120]
[392903487,1762119395115,500.0,0.00030136,120]
[392903488,1762119395851,500.0,0.00030136,120]
[392903489,1762119396871,500.0,0.00030136,120]
[392903490,1762119397418,500.0,0.00030136,120]
[392903491,1762119397706,500.0,0.00030136,120]
[392903492,1762119397784,516.5468384,0.00030136,120]
[392903493,1762119400375,500.0,0.00030136,120]
[392903494,1762119401004,269.25654591,0.00030136,120]
[392903495,1762119401368,197.40371292,0.00030136,120]
[392903496,1762119401968,500.0,0.00030136,120]
[392903497,1762119402602,500.0,0.00030136,120]
[392903498,1762119402885,525.43,0.00030136,120]
[392903499,1762119403346,500.0,0.00030136,120]
[392903500,1762119403594,500.0,0.00030136,120]
[392903501,1762119405853,500.0,0.00030136,120]
[392903502,1762119406091,500.0,0.00030136,120]
[392903503,1762119406747,500.0,0.00030136,120]
[392903504,1762119408015,500.0,0.00030136,120]
[392903505,1762119408483,796.64,0.00030136,120]
[392903506,1762119410518,500.0,0.00030136,120]
[392903507,1762119411122,500.0,0.00030136,120]
[392903508,1762119411236,500.0,0.00030136,120]
[392903509,1762119412023,500.0,0.00030136,120]
[392903510,1762119413287,500.0,0.00030136,120]
[392903511,1762119413861,500.0,0.00030136,120]
[392903512,1762119414704,974.65,0.00030136,120]
[392903513,1762119417314,500.0,0.00030136,120]
[392903514,1762119418750,618.45,0.00030136,120]
[392903515,1762119418890,500.0,0.00030136,120]
[392903516,1762119419148,500.0,0.00030136,120]
[392903517,1762119419523,500.0,0.00030136,120]
[392903518,1762119419917,500.0,0.00030136,120]
[392903519,1762119421450,500.0,0.00030136,120]
[392903520,1762119422770,500.0,0.00030136,120]
[392903521,1762119423532,520.74644948,0.00030136,120]
[392903522,1762119423733,500.0,0.00030136,120]
[392903523,1762119424563,500.0,0.00030136,120]
[392903524,1762119426303,500.0,0.00030136,120]
[392903525,1762119427219,567.9,0.00030136,120]
[392903526,1762119428883,500.0,0.00030136,120]
[392903527,1762119428953,500.0,0.00030136,120]
[392903528,1762119430524,500.0,0.00030136,120]
[392903529,1762119430972,500.0,0.00030136,120]
[392903530,1762119431175,500.0,0.00030136,120]
[392903531,1762119431694,500.0,0.00030136,120]
[392903532,1762119432229,500.0,0.00030136,120]
[392903533,1762119433602,610.88229767,0.00030136,120]
[392903534,1762119434959,150.0,0.00014068,2]
[392903535,1762119435192,150.0,0.00014068,120]
[392903536,1762119435395,252.5464332,0.00030136,120]
[392903537,1762119435554,485.14481437,0.00030136,120]
[392903539,1762119436529,500.0,0.00030136,120]
[392903540,1762119437409,500.0,0.00030136,120]
[392903541,1762119441422,500.0,0.00030136,120]
[392903542,1762119441822,640.45,0.00030136,120]
[392903543,1762119443225,500.0,0.00030136,120]
[392903544,1762119444030,500.0,0.00030136,120]
[392903545,1762119446100,561.8040987,0.00030136,120]
[392903546,1762119447127,500.0,0.00030136,120]
[392903547,1762119448908,500.0,0.00030136,120]
[392903548,1762119450124,500.0,0.00030136,120]
[392903549,1762119450930,500.0,0.00030136,120]
[392903550,1762119451214,500.0,0.00030136,120]
[392903551,1762119452176,500.0,0.00030136,120]
[392903552,1762119452798,500.0,0.00030136,120]
[392903553,1762119453118,633.23,0.00030136,120]
[392903554,1762119453732,500.0,0.00030136,120]
[392903555,1762119454912,562.1,0.00030136,120]
[392903556,1762119455125,161.2149,0.00030136,120]
[392903557,1762119455377,500.0,0.00030136,120]
[392903558,1762119456294,309.13473689,0.00030136,120]
[392903559,1762119456687,500.0,0.00030136,120]
[392903560,1762119457674,500.0,0.00030136,120]
[392903561,1762119459249,643.95845086,0.00030136,120]
[392903562,1762119461162,500.0,0.00030136,120]
[392903563,1762119461949,500.0,0.00030136,120]
[392903564,1762119462016,500.0,0.00030136,120]
[392903565,1762119463335,500.0,0.00030136,120]
[392903566,1762119463420,500.0,0.00030136,120]
[392903567,1762119463966,282.04835691,0.00030136,120]
[392903568,1762119465513,500.0,0.00030136,120]
[392903569,1762119465842,500.0,0.00030136,120]
[392903570,1762119466386,633.96,0.00030136,120]
[392903571,1762119466994,500.0,0.00030136,120]
[392903572,1762119467867,433.85747955,0.00030136,120]
[392903573,1762119470608,500.0,0.00030136,120]
[392903574,1762119470676,500.0,0.00030136,120]
[392903575,1762119471265,500.0,0.00030136,120]
[392903576,1762119472771,500.0,0.00030136,120]
[392903577,1762119473437,500.0,0.00030136,120]
[392903578,1762119473881,500.0,0.00030136,120]
[392903579,1762119475761,500.0,0.00030136,120]
[392903580,1762119475825,500.0,0.00030136,120]
[392903582,1762119476364,500.0,0.00030136,120]
[392903583,1762119476714,584.73,0.00030136,120]
[392903584,1762119476792,500.0,0.00030136,120]
[392903585,1762119476977,500.0,0.00030136,120]
[392903586,1762119477408,500.0,0.00030136,120]
[392903587,1762119478979,521.13175805,0.00030136,120]
[392903588,1762119479043,500.0,0.00030136,120]
[392903589,1762119479322,642.42,0.00030136,120]
[392903591,1762119480077,436.43481714,0.00030136,120]
[392903593,1762119481783,500.0,0.00030136,120]
[392903594,1762119481936,500.0,0.00030136,120]
[392903595,1762119482495,500.0,0.00030136,120]
[392903596,1762119483115,500.0,0.00030136,120]
[392903597,1762119483355,642.47,0.00030136,120]
[392903598,1762119484925,500.0,0.00030136,120]
[392903599,1762119486164,500.0,0.00030136,120]
[392903600,1762119487796,500.0,0.00030136,120]
[392903601,1762119488241,500.0,0.00030136,120]
[392903602,1762119488697,630.33,0.00030136,120]
[392903603,1762119489282,610.96195072,0.00030136,120]
[392903604,1762119490833,500.0,0.00030136,120]
[392903605,1762119490870,270.83,0.00014027,2]
[392903606,1762119492238,500.0,0.00030136,120]
[392903607,1762119493584,500.0,0.00030136,120]
[392903608,1762119494333,500.0,0.00030136,120]
[392903609,1762119495919,500.0,0.00030136,120]
[392903610,1762119496057,500.0,0.00030136,120]
[392903611,1762119496274,663.0,0.00030136,120]
[392903612,1762119496449,500.0,0.00030136,120]
[392903613,1762119496773,500.0,0.00030136,120]
[392903614,1762119497837,500.0,0.00030136,120]
[392903615,1762119498317,500.0,0.00030136,120]
[392903616,1762119499766,623.96,0.00030136,120]
[392903617,1762119500283,500.0,0.00030136,120]
[392903618,1762119504307,500.0,0.00030136,120]
[392903619,1762119504381,500.0,0.00030136,120]
[392903620,1762119505168,500.0,0.00030136,120]
[392903621,1762119505780,500.0,0.00030136,120]
[392903622,1762119506010,500.0,0.00030136,120]
[392903623,1762119508305,500.0,0.00030136,120]
[392903624,1762119508741,500.0,0.00030136,120]
[392903625,1762119510246,500.0,0.00030136,120]
[392903626,1762119510581,500.0,0.00030136,120]
[392903627,1762119510649,816.47,0.00030136,120]
[392903628,1762119512825,500.0,0.00030136,120]
[392903629,1762119513632,610.46609665,0.00030136,120]
[392903631,1762119516606,500.0,0.00030136,120]
[392903632,1762119516807,620.3,0.00030136,120]
[392903633,1762119517107,500.0,0.00030136,120]
[392903634,1762119517823,1000.0,0.00030136,120]
[392903635,1762119518755,500.0,0.00030136,120]
[392903636,1762119518825,500.0,0.00030136,120]
[392903637,1762119519501,500.0,0.00030136,120]
[392903638,1762119520085,500.0,0.00030136,120]
[392903639,1762119520926,500.0,0.00030136,120]
[392903640,1762119521037,500.0,0.00030136,120]
[392903641,1762119521184,806.09,0.00030136,120]
[392903642,1762119522627,500.0,0.00030136,120]
[392903643,1762119523445,660.89,0.00030136,120]
[392903644,1762119523576,500.0,0.00030136,120]
[392903645,1762119524548,500.0,0.00030136,120]
[392903646,1762119525384,500.0,0.00030136,120]
[392903647,1762119527780,500.0,0.00030136,120]
[392903648,1762119528556,500.0,0.00030136,120]
[392903649,1762119530508,500.0,0.00030136,120]
[392903650,1762119531708,500.0,0.00030136,120]
[392903651,1762119533482,500.0,0.00030136,120]
[392903652,1762119533807,500.0,0.00030136,120]
[392903653,1762119534508,594.04,0.00030136,120]
[392903654,1762119537080,500.0,0.00030136,120]
[392903655,1762119537552,500.0,0.00030136,120]
[392903656,1762119539384,500.0,0.00030136,120]
[392903657,1762119539582,558.01548876,0.00030136,120]
[392903658,1762119540398,500.0,0.00030136,120]
[392903659,1762119541385,756.44,0.00030136,120]
[392903660,1762119541784,313.04173857,0.00030136,120]
[392903661,1762119542526,500.0,0.00030136,120]
[392903662,1762119543851,500.0,0.00030136,120]
[392903663,1762119543927,724.38,0.00030136,120]
[392903664,1762119546423,500.0,0.00030136,120]
[392903665,1762119546743,862.5,0.00030136,120]
[392903666,1762119547531,528.77,0.00030136,120]
[392903667,1762119550823,520.87945493,0.00030136,120]
[392903668,1762119551602,500.0,0.00030136,120]
[392903669,1762119552603,500.0,0.00030136,120]
[392903670,1762119554679,500.0,0.00030136,120]
[392903671,1762119555397,324.77618271,0.00030136,120]
[392903672,1762119555530,524.08,0.00030136,120]
[392903673,1762119556084,500.0,0.00030136,120]
[392903674,1762119556355,500.0,0.00030136,120]
[392903675,1762119557158,500.0,0.00030136,120]
[392903676,1762119557552,500.5,0.00030136,120]
[392903677,1762119558599,500.0,0.00030136,120]
[392903678,1762119560140,575.19,0.00030136,120]
[392903679,1762119562058,500.0,0.00030136,120]
[392903680,1762119564587,500.0,0.00030136,120]
[392903681,1762119565964,277.91703737,0.00030136,120]
[392903682,1762119567887,737.94,0.00030136,120]
[392903683,1762119567989,824.67,0.00030136,120]
[392903684,1762119569329,500.0,0.00030136,120]
[392903685,1762119571308,694.18,0.00030136,120]
[392903686,1762119572069,172.72034551,0.00030136,120]
[392903687,1762119572222,500.0,0.00030136,120]
[392903688,1762119574706,500.0,0.00030136,120]
[392903689,1762119575187,500.0,0.00030136,120]
[392903690,1762119575472,752.3,0.00030136,120]
[392903691,1762119576724,500.0,0.00030136,120]
[392903692,1762119577509,561.27069466,0.00030136,120]
[392903693,1762119577685,500.0,0.00030136,120]
[392903694,1762119577786,500.0,0.00030136,120]
[392903695,1762119578935,500.0,0.00030136,120]
[392903696,1762119579042,514.42,0.00030136,120]